fUST/lending_fUST_20260610
["ID","MTS","AMOUNT","RATE_DAILY","PERIOD"]
[424668165,1781037062000,-3000.0,0.0002127,2]
[424668166,1781037062000,-3000.0,0.0002128,2]
[424668163,1781037062000,-3000.0,0.0002125,2]
[424668161,1781037062000,-3000.0,0.0002124,2]
[424668168,1781037062000,-3000.0,0.0002129,2]
[424668169,1781037062000,-400.93,0.00021297,2]
[424668170,1781037062000,-3000.0,0.000213,2]
[424668162,1781037062000,-400.93,0.00021247,2]
[424668173,1781037062000,-200.0,0.00021312,2]
[424668167,1781037062000,-351.32,0.00021284,2]
[424668177,1781037062000,-200.0,0.00021312,2]
[424668187,1781037062000,-3000.0,0.0002136,2]
[424668174,1781037062000,-200.0,0.00021312,2]
[424668176,1781037062000,-200.0,0.00021312,2]
[424668179,1781037062000,-200.0,0.00021312,2]
[424668184,1781037062000,-3000.0,0.0002134,2]
[424668172,1781037062000,-200.0,0.00021312,2]
[424668181,1781037062000,-3000.0,0.0002132,2]
[424668180,1781037062000,-174.0,0.00021312,2]
[424668178,1781037062000,-200.0,0.00021312,2]
[424668182,1781037062000,-3000.0,0.0002133,2]
[424668183,1781037062000,-351.32,0.00021334,2]
[424668186,1781037062000,-3000.0,0.0002135,2]
[424668197,1781037062000,-500.0,0.00021369,2]
[424668160,1781037062000,-351.32,0.00021234,2]
[424668175,1781037062000,-200.0,0.00021312,2]
[424668159,1781037062000,-3000.0,0.0002123,2]
[424668130,1781037062000,-500.0,0.00021095,2]
[424668151,1781037062000,-400.93,0.00021197,2]
[424668196,1781037062000,-534.1,0.00021369,2]
[424668132,1781037062000,-627.45,0.00021095,2]
[424668135,1781037062000,-400.93,0.00021097,2]
[424668138,1781037062000,-3000.0,0.0002112,2]
[424668134,1781037062000,-855.44,0.00021096,2]
[424668131,1781037062000,-510.24,0.00021095,2]
[424668136,1781037062000,-3000.0,0.000211,2]
[424668129,1781037062000,-7282.78,0.00021095,2]
[424668137,1781037062000,-3000.0,0.0002111,2]
[424668133,1781037062000,-1004.38,0.00021095,2]
[424668146,1781037062000,-3000.0,0.0002118,2]
[424668139,1781037062000,-3000.0,0.0002113,2]
[424668141,1781037062000,-3000.0,0.0002114,2]
[424668143,1781037062000,-3000.0,0.0002115,2]
[424668142,1781037062000,-400.93,0.00021147,2]
[424668145,1781037062000,-3000.0,0.0002117,2]
[424668144,1781037062000,-3000.0,0.0002116,2]
[424668147,1781037062000,-351.32,0.00021184,2]
[424668152,1781037062000,-194.79772297,0.000212,2]
[424668153,1781037062000,-199.4,0.000212,2]
[424668155,1781037062000,-1793.35,0.000212,2]
[424668149,1781037062000,-268.59273652,0.00021196,2]
[424668150,1781037062000,-152.0,0.00021196,2]
[424668157,1781037062000,-3000.0,0.0002121,2]
[424668148,1781037062000,-3000.0,0.0002119,2]
[424668156,1781037062000,-3000.0,0.000212,2]
[424668154,1781037062000,-286.94001625,0.000212,2]
[424668158,1781037062000,-3000.0,0.0002122,2]
[424668185,1781037062000,-400.93,0.00021347,2]
[424668140,1781037062000,-351.32,0.00021134,2]
[424668188,1781037062000,-500.0,0.00021369,2]
[424668227,1781037062000,-367.0,0.00021438,2]
[424668226,1781037062000,-500.0,0.00021438,2]
[424668234,1781037062000,-411.7751,0.000215,2]
[424668225,1781037062000,-500.0,0.00021438,2]
[424668229,1781037062000,-1500.0,0.00021481,2]
[424668231,1781037062000,-400.93,0.00021497,2]
[424668230,1781037062000,-351.32,0.00021484,2]
[424668228,1781037062000,-400.93,0.00021447,2]
[424668235,1781037062000,-1988.8999,0.000215,2]
[424668233,1781037062000,-13023.07553847,0.000215,2]
[424668232,1781037062000,-1052.4941952,0.000215,2]
[424668224,1781037062000,-500.0,0.00021438,2]
[424668247,1781037062000,-212.0,0.00021507,4]
[424668240,1781037062000,-1480.83,0.000215,2]
[424668248,1781037062000,-351.32,0.00021534,2]
[424668236,1781037062000,-1988.8999,0.000215,2]
[424668238,1781037062000,-1991.9199,0.000215,2]
[424668239,1781037062000,-1837.4024,0.000215,2]
[424668237,1781037062000,-1480.833,0.000215,2]
[424668243,1781037062000,-1480.83,0.000215,2]
[424668242,1781037062000,-1480.833,0.000215,2]
[424668246,1781037062000,-1208.98,0.000215,2]
[424668189,1781037062000,-580.75,0.00021369,2]
[424668244,1781037062000,-1208.988,0.000215,2]
[424668241,1781037062000,-1480.833,0.000215,2]
[424668249,1781037062000,-400.93,0.00021547,2]
[424668250,1781037062000,-351.32,0.00021584,2]
[424668223,1781037062000,-500.0,0.00021438,2]
[424668220,1781037062000,-500.0,0.00021438,2]
[424668245,1781037062000,-1208.988,0.000215,2]
[424668219,1781037062000,-500.0,0.00021438,2]
[424668218,1781037062000,-500.0,0.00021438,2]
[424668194,1781037062000,-324.02,0.00021369,2]
[424668192,1781037062000,-303.31,0.00021369,2]
[424668195,1781037062000,-500.0,0.00021369,2]
[424668191,1781037062000,-500.0,0.00021369,2]
[424668193,1781037062000,-694.6,0.00021369,2]
[424668200,1781037062000,-2063.37,0.00021369,2]
[424668198,1781037062000,-702.66,0.00021369,2]
[424668205,1781037062000,-1004.38,0.00021369,2]
[424668204,1781037062000,-627.45,0.00021369,2]
[424668201,1781037062000,-7282.78,0.00021369,2]
[424668203,1781037062000,-510.24,0.00021369,2]
[424668202,1781037062000,-500.0,0.00021369,2]
[424668206,1781037062000,-855.44,0.0002137,2]
[424668190,1781037062000,-656.65,0.00021369,2]
[424668199,1781037062000,-520.58,0.00021369,2]
[424668208,1781037062000,-3000.0,0.0002138,2]
[424668216,1781037062000,-351.32,0.00021434,2]
[424668221,1781037062000,-500.0,0.00021438,2]
[424668213,1781037062000,-3000.0,0.0002141,2]
[424668215,1781037062000,-3690.754836,0.0002143,2]
[424668211,1781037062000,-400.93,0.00021397,2]
[424668217,1781037062000,-174.0,0.00021435,2]
[424668222,1781037062000,-500.0,0.00021438,2]
[424668212,1781037062000,-3000.0,0.000214,2]
[424668210,1781037062000,-3000.0,0.0002139,2]
[424668207,1781037062000,-3000.0,0.0002137,2]
[424668214,1781037062000,-3000.0,0.0002142,2]
[424668209,1781037062000,-351.32,0.00021384,2]
[424668292,1781037063000,-500.0,0.00021917,2]
[424668289,1781037063000,-656.65,0.00021917,2]
[424668286,1781037063000,-400.93,0.00021897,2]
[424668284,1781037063000,-400.93,0.00021847,2]
[424668281,1781037063000,-400.93,0.00021797,2]
[424668285,1781037063000,-351.32,0.00021884,2]
[424668273,1781037063000,-855.44,0.00021644,2]
[424668277,1781037063000,-160.0,0.00021699,5]
[424668274,1781037063000,-400.93,0.00021647,2]
[424668282,1781037063000,-1568.4122,0.000218,2]
[424668293,1781037063000,-534.1,0.00021917,2]
[424668305,1781037063000,-165.603611,0.00021918,2]
[424668287,1781037063000,-500.0,0.00021917,2]
[424668283,1781037063000,-351.32,0.00021834,2]
[424668290,1781037063000,-160.16,0.00021917,2]
[424668291,1781037063000,-694.6,0.00021917,2]
[424668295,1781037063000,-702.66,0.00021917,2]
[424668296,1781037063000,-520.58,0.00021917,2]
[424668294,1781037063000,-467.26626172,0.00021917,2]
[424668306,1781037063000,-151.0,0.00021918,2]
[424668297,1781037063000,-2063.37,0.00021917,2]
[424668279,1781037063000,-400.93,0.00021747,2]
[424668288,1781037063000,-580.75,0.00021917,2]
[424668275,1781037063000,-351.32,0.00021684,2]
[424668262,1781037063000,-500.0,0.00021643,2]
[424668280,1781037063000,-351.32,0.00021784,2]
[424668254,1781037063000,-200.23157091,0.000216,4]
[424668251,1781037063000,-400.93,0.00021597,2]
[424668260,1781037063000,-500.0,0.00021643,2]
[424668253,1781037063000,-160.0,0.000216,30]
[424668257,1781037063000,-500.0,0.00021643,2]
[424668252,1781037063000,-417.15472785,0.000216,30]
[424668256,1781037063000,-351.32,0.00021634,2]
[424668258,1781037063000,-580.75,0.00021643,2]
[424668259,1781037063000,-656.65,0.00021643,2]
[424668255,1781037063000,-239.07927782,0.000216,2]
[424668278,1781037063000,-351.32,0.00021734,2]
[424668263,1781037063000,-534.1,0.00021643,2]
[424668268,1781037063000,-7282.78,0.00021643,2]
[424668264,1781037063000,-500.0,0.00021643,2]
[424668265,1781037063000,-702.66,0.00021643,2]
[424668266,1781037063000,-520.58,0.00021643,2]
[424668261,1781037063000,-694.6,0.00021643,2]
[424668270,1781037063000,-510.24,0.00021643,2]
[424668276,1781037063000,-400.93,0.00021697,2]
[424668272,1781037063000,-1004.38,0.00021643,2]
[424668269,1781037063000,-500.0,0.00021643,2]
[424668271,1781037063000,-627.45,0.00021643,2]
[424668267,1781037063000,-2063.37,0.00021643,2]
[424668303,1781037063000,-151.0,0.00021918,2]
[424668298,1781037063000,-7282.78,0.00021917,2]
[424668301,1781037063000,-627.45,0.00021917,2]
[424668333,1781037063000,-151.0,0.00021918,2]
[424668330,1781037063000,-165.806988,0.00021918,2]
[424668334,1781037063000,-165.806988,0.00021918,2]
[424668332,1781037063000,-165.806988,0.00021918,2]
[424668335,1781037063000,-165.806988,0.00021918,2]
[424668343,1781037063000,-151.0,0.00021918,2]
[424668339,1781037063000,-165.806984,0.00021918,2]
[424668338,1781037063000,-151.0,0.00021918,2]
[424668337,1781037063000,-165.806988,0.00021918,2]
[424668342,1781037063000,-151.0,0.00021918,2]
[424668331,1781037063000,-151.0,0.00021918,2]
[424668340,1781037063000,-151.0,0.00021918,2]
[424668344,1781037063000,-207.97145,0.00021918,2]
[424668346,1781037063000,-151.0,0.00021918,2]
[424668349,1781037063000,-151.0,0.00021918,2]
[424668348,1781037063000,-151.0,0.00021918,2]
[424668351,1781037063000,-151.0,0.00021918,2]
[424668347,1781037063000,-151.0,0.00021918,2]
[424668345,1781037063000,-151.0,0.00021918,2]
[424668350,1781037063000,-281.47186,0.00021918,2]
[424668352,1781037063000,-151.0,0.00021918,2]
[424668304,1781037063000,-151.0,0.00021918,2]
[424668341,1781037063000,-151.0,0.00021918,2]
[424668325,1781037063000,-151.0,0.00021918,2]
[424668336,1781037063000,-151.0,0.00021918,2]
[424668329,1781037063000,-151.0,0.00021918,2]
[424668299,1781037063000,-381.89,0.00021917,2]
[424668328,1781037063000,-165.806988,0.00021918,2]
[424668302,1781037063000,-1004.38,0.00021917,2]
[424668300,1781037063000,-510.24,0.00021917,2]
[424668308,1781037063000,-165.806988,0.00021918,2]
[424668310,1781037063000,-165.806988,0.00021918,2]
[424668319,1781037063000,-151.0,0.00021918,2]
[424668318,1781037063000,-165.806988,0.00021918,2]
[424668314,1781037063000,-165.806988,0.00021918,2]
[424668317,1781037063000,-151.0,0.00021918,2]
[424668309,1781037063000,-165.806988,0.00021918,2]
[424668313,1781037063000,-165.806988,0.00021918,2]
[424668312,1781037063000,-165.806988,0.00021918,2]
[424668315,1781037063000,-151.0,0.00021918,2]
[424668326,1781037063000,-165.806988,0.00021918,2]
[424668322,1781037063000,-165.806988,0.00021918,2]
[424668323,1781037063000,-151.0,0.00021918,2]
[424668321,1781037063000,-151.0,0.00021918,2]
[424668324,1781037063000,-165.806988,0.00021918,2]
[424668327,1781037063000,-151.0,0.00021918,2]
[424668316,1781037063000,-165.806988,0.00021918,2]
[424668311,1781037063000,-165.806988,0.00021918,2]
[424668307,1781037063000,-152.698009,0.00021918,2]
[424668320,1781037063000,-165.806988,0.00021918,2]
[424668395,1781037064000,-151.0,0.00021918,2]
[424668385,1781037064000,-151.0,0.00021918,2]
[424668379,1781037064000,-151.0,0.00021918,2]
[424668389,1781037064000,-151.0,0.00021918,2]
[424668388,1781037064000,-151.0,0.00021918,2]
[424668390,1781037064000,-199.009627,0.00021918,2]
[424668387,1781037064000,-151.0,0.00021918,2]
[424668391,1781037064000,-151.0,0.00021918,2]
[424668386,1781037064000,-151.0,0.00021918,2]
[424668392,1781037064000,-151.0,0.00021918,2]
[424668393,1781037064000,-151.0,0.00021918,2]
[424668394,1781037064000,-151.0,0.00021918,2]
[424668412,1781037064000,-233.263777,0.00021918,2]
[424668398,1781037064000,-172.369076,0.00021918,2]
[424668397,1781037064000,-151.0,0.00021918,2]
[424668399,1781037064000,-151.0,0.00021918,2]
[424668401,1781037064000,-151.0,0.00021918,2]
[424668407,1781037064000,-151.0,0.00021918,2]
[424668408,1781037064000,-151.0,0.00021918,2]
[424668413,1781037064000,-364.9,0.00021918,2]
[424668410,1781037064000,-151.0,0.00021918,2]
[424668409,1781037064000,-151.0,0.00021918,2]
[424668402,1781037064000,-151.0,0.00021918,2]
[424668411,1781037064000,-151.0,0.00021918,2]
[424668375,1781037064000,-151.0,0.00021918,2]
[424668396,1781037064000,-151.0,0.00021918,2]
[424668384,1781037064000,-151.0,0.00021918,2]
[424668358,1781037064000,-1583.639907,0.00021918,2]
[424668374,1781037064000,-151.0,0.00021918,2]
[424668354,1781037064000,-1583.639907,0.00021918,2]
[424668353,1781037064000,-151.000181,0.00021918,2]
[424668355,1781037064000,-1583.639907,0.00021918,2]
[424668356,1781037064000,-1583.639907,0.00021918,2]
[424668357,1781037064000,-1583.639907,0.00021918,2]
[424668359,1781037064000,-1583.639907,0.00021918,2]
[424668360,1781037064000,-1583.639907,0.00021918,2]
[424668362,1781037064000,-1583.639907,0.00021918,2]
[424668363,1781037064000,-1583.639907,0.00021918,2]
[424668365,1781037064000,-1583.639907,0.00021918,2]
[424668366,1781037064000,-1583.639907,0.00021918,2]
[424668364,1781037064000,-1583.639907,0.00021918,2]
[424668383,1781037064000,-151.0,0.00021918,2]
[424668368,1781037064000,-1583.639907,0.00021918,2]
[424668371,1781037064000,-1583.639907,0.00021918,2]
[424668361,1781037064000,-1583.639907,0.00021918,2]
[424668367,1781037064000,-1583.639907,0.00021918,2]
[424668369,1781037064000,-1583.639907,0.00021918,2]
[424668372,1781037064000,-1583.639907,0.00021918,2]
[424668373,1781037064000,-1583.639909,0.00021918,2]
[424668376,1781037064000,-151.0,0.00021918,2]
[424668378,1781037064000,-151.0,0.00021918,2]
[424668380,1781037064000,-244.85742,0.00021918,2]
[424668382,1781037064000,-1877.43270713,0.00021918,2]
[424668377,1781037064000,-151.0,0.00021918,2]
[424668381,1781037064000,-5127.67719549,0.00021918,2]
[424668370,1781037064000,-1583.639907,0.00021918,2]
[424668404,1781037064000,-151.0,0.00021918,2]
[424668400,1781037064000,-151.0,0.00021918,2]
[424668406,1781037064000,-151.0,0.00021918,2]
[424668451,1781037064000,-378.772195,0.00021918,2]
[424668452,1781037064000,-378.772195,0.00021918,2]
[424668444,1781037064000,-378.772195,0.00021918,2]
[424668447,1781037064000,-378.772195,0.00021918,2]
[424668450,1781037064000,-378.772195,0.00021918,2]
[424668449,1781037064000,-378.772195,0.00021918,2]
[424668446,1781037064000,-378.772195,0.00021918,2]
[424668454,1781037064000,-378.772195,0.00021918,2]
[424668443,1781037064000,-378.772195,0.00021918,2]
[424668445,1781037064000,-378.772195,0.00021918,2]
[424668455,1781037064000,-151.0,0.00021918,2]
[424668453,1781037064000,-151.0,0.00021918,2]
[424668448,1781037064000,-378.772195,0.00021918,2]
[424668457,1781037064000,-151.0,0.00021918,2]
[424668458,1781037064000,-378.772195,0.00021918,2]
[424668456,1781037064000,-378.772195,0.00021918,2]
[424668469,1781037064000,-151.0,0.00021918,2]
[424668459,1781037064000,-152.11249,0.00021918,2]
[424668462,1781037064000,-378.772188,0.00021918,2]
[424668463,1781037064000,-151.0,0.00021918,2]
[424668465,1781037064000,-151.0,0.00021918,2]
[424668464,1781037064000,-151.0,0.00021918,2]
[424668461,1781037064000,-378.772195,0.00021918,2]
[424668460,1781037064000,-378.772195,0.00021918,2]
[424668466,1781037064000,-151.0,0.00021918,2]
[424668405,1781037064000,-151.0,0.00021918,2]
[424668468,1781037064000,-151.0,0.00021918,2]
[424668442,1781037064000,-378.772195,0.00021918,2]
[424668467,1781037064000,-151.0,0.00021918,2]
[424668434,1781037064000,-151.0,0.00021918,2]
[424668435,1781037064000,-151.0,0.00021918,2]
[424668403,1781037064000,-151.0,0.00021918,2]
[424668414,1781037064000,-364.9,0.00021918,2]
[424668420,1781037064000,-364.9,0.00021918,2]
[424668424,1781037064000,-364.9,0.00021918,2]
[424668417,1781037064000,-364.9,0.00021918,2]
[424668422,1781037064000,-364.9,0.00021918,2]
[424668416,1781037064000,-364.9,0.00021918,2]
[424668415,1781037064000,-364.9,0.00021918,2]
[424668418,1781037064000,-364.9,0.00021918,2]
[424668421,1781037064000,-364.9,0.00021918,2]
[424668423,1781037064000,-364.9,0.00021918,2]
[424668426,1781037064000,-364.9,0.00021918,2]
[424668427,1781037064000,-364.9,0.00021918,2]
[424668419,1781037064000,-364.9,0.00021918,2]
[424668425,1781037064000,-364.9,0.00021918,2]
[424668432,1781037064000,-364.9,0.00021918,2]
[424668431,1781037064000,-364.9,0.00021918,2]
[424668430,1781037064000,-364.9,0.00021918,2]
[424668429,1781037064000,-364.9,0.00021918,2]
[424668438,1781037064000,-151.0,0.00021918,2]
[424668441,1781037064000,-378.772195,0.00021918,2]
[424668433,1781037064000,-151.0,0.00021918,2]
[424668440,1781037064000,-287.537154,0.00021918,2]
[424668436,1781037064000,-151.0,0.00021918,2]
[424668428,1781037064000,-364.9,0.00021918,2]
[424668437,1781037064000,-378.772195,0.00021918,2]
[424668439,1781037064000,-378.772195,0.00021918,2]
[424668515,1781037065000,-151.0,0.00021918,2]
[424668523,1781037065000,-151.0,0.00021918,2]
[424668513,1781037065000,-151.0,0.00021918,2]
[424668522,1781037065000,-151.0,0.00021918,2]
[424668511,1781037065000,-369.557801,0.00021918,2]
[424668512,1781037065000,-369.557801,0.00021918,2]
[424668499,1781037065000,-369.557801,0.00021918,2]
[424668509,1781037065000,-369.557801,0.00021918,2]
[424668508,1781037065000,-369.557801,0.00021918,2]
[424668504,1781037065000,-369.557801,0.00021918,2]
[424668503,1781037065000,-369.557801,0.00021918,2]
[424668507,1781037065000,-369.557801,0.00021918,2]
[424668505,1781037065000,-369.557801,0.00021918,2]
[424668524,1781037065000,-151.0,0.00021918,2]
[424668532,1781037065000,-409.4,0.00021918,2]
[424668520,1781037065000,-151.0,0.00021918,2]
[424668517,1781037065000,-151.0,0.00021918,2]
[424668521,1781037065000,-151.0,0.00021918,2]
[424668519,1781037065000,-151.0,0.00021918,2]
[424668516,1781037065000,-369.557803,0.00021918,2]
[424668518,1781037065000,-151.0,0.00021918,2]
[424668526,1781037065000,-151.0,0.00021918,2]
[424668527,1781037065000,-151.0,0.00021918,2]
[424668525,1781037065000,-151.0,0.00021918,2]
[424668535,1781037065000,-151.0,0.00021918,2]
[424668531,1781037065000,-409.4,0.00021918,2]
[424668530,1781037065000,-409.4,0.00021918,2]
[424668528,1781037065000,-223.006115,0.00021918,2]
[424668506,1781037065000,-369.557801,0.00021918,2]
[424668514,1781037065000,-369.557801,0.00021918,2]
[424668510,1781037065000,-369.557801,0.00021918,2]
[424668476,1781037065000,-252.774402,0.00021918,2]
[424668501,1781037065000,-369.557801,0.00021918,2]
[424668470,1781037065000,-151.0,0.00021918,2]
[424668471,1781037065000,-151.0,0.00021918,2]
[424668534,1781037065000,-409.4,0.00021918,2]
[424668478,1781037065000,-252.774402,0.00021918,2]
[424668482,1781037065000,-252.774402,0.00021918,2]
[424668477,1781037065000,-252.774402,0.00021918,2]
[424668483,1781037065000,-252.774402,0.00021918,2]
[424668475,1781037065000,-252.774402,0.00021918,2]
[424668481,1781037065000,-252.774402,0.00021918,2]
[424668474,1781037065000,-252.774402,0.00021918,2]
[424668472,1781037065000,-155.622366,0.00021918,2]
[424668484,1781037065000,-252.774402,0.00021918,2]
[424668473,1781037065000,-252.774402,0.00021918,2]
[424668480,1781037065000,-252.774402,0.00021918,2]
[424668502,1781037065000,-369.557801,0.00021918,2]
[424668479,1781037065000,-252.774402,0.00021918,2]
[424668497,1781037065000,-369.557801,0.00021918,2]
[424668496,1781037065000,-369.557801,0.00021918,2]
[424668487,1781037065000,-252.774402,0.00021918,2]
[424668485,1781037065000,-252.774402,0.00021918,2]
[424668488,1781037065000,-252.774402,0.00021918,2]
[424668489,1781037065000,-252.774402,0.00021918,2]
[424668490,1781037065000,-252.774402,0.00021918,2]
[424668491,1781037065000,-252.774402,0.00021918,2]
[424668492,1781037065000,-252.774405,0.00021918,2]
[424668495,1781037065000,-369.557801,0.00021918,2]
[424668493,1781037065000,-151.0,0.00021918,2]
[424668494,1781037065000,-174.609454,0.00021918,2]
[424668498,1781037065000,-369.557801,0.00021918,2]
[424668500,1781037065000,-369.557801,0.00021918,2]
[424668486,1781037065000,-252.774402,0.00021918,2]
[424668533,1781037065000,-409.4,0.00021918,2]
[424668529,1781037065000,-409.4,0.00021918,2]
[424668537,1781037065000,-151.0,0.00021918,2]
[424668568,1781037065000,-297.206192,0.00021918,2]
[424668569,1781037065000,-297.206192,0.00021918,2]
[424668570,1781037065000,-297.206192,0.00021918,2]
[424668573,1781037065000,-297.206192,0.00021918,2]
[424668572,1781037065000,-297.206192,0.00021918,2]
[424668571,1781037065000,-297.206192,0.00021918,2]
[424668579,1781037065000,-289.061802,0.00021918,2]
[424668589,1781037065000,-289.061802,0.00021918,2]
[424668580,1781037065000,-289.061802,0.00021918,2]
[424668586,1781037065000,-289.061802,0.00021918,2]
[424668587,1781037065000,-289.061802,0.00021918,2]
[424668578,1781037065000,-289.061802,0.00021918,2]
[424668588,1781037065000,-289.061802,0.00021918,2]
[424668581,1781037065000,-289.061802,0.00021918,2]
[424668590,1781037065000,-289.061802,0.00021918,2]
[424668591,1781037065000,-289.061802,0.00021918,2]
[424668583,1781037065000,-289.061802,0.00021918,2]
[424668600,1781037065000,-549.843849,0.00021918,2]
[424668601,1781037065000,-549.843849,0.00021918,2]
[424668599,1781037065000,-549.843849,0.00021918,2]
[424668536,1781037065000,-409.4,0.00021918,2]
[424668597,1781037065000,-549.843849,0.00021918,2]
[424668602,1781037065000,-549.843849,0.00021918,2]
[424668567,1781037065000,-297.206192,0.00021918,2]
[424668595,1781037065000,-549.843849,0.00021918,2]
[424668596,1781037065000,-549.843849,0.00021918,2]
[424668592,1781037065000,-289.061802,0.00021918,2]
[424668593,1781037065000,-289.061802,0.00021918,2]
[424668585,1781037065000,-289.061802,0.00021918,2]
[424668584,1781037065000,-289.061802,0.00021918,2]
[424668582,1781037065000,-289.061802,0.00021918,2]
[424668594,1781037065000,-289.061806,0.00021918,2]
[424668576,1781037065000,-289.061802,0.00021918,2]
[424668598,1781037065000,-549.843849,0.00021918,2]
[424668575,1781037065000,-289.061802,0.00021918,2]
[424668577,1781037065000,-289.061802,0.00021918,2]
[424668547,1781037065000,-409.4,0.00021918,2]
[424668543,1781037065000,-151.0,0.00021918,2]
[424668551,1781037065000,-297.206192,0.00021918,2]
[424668540,1781037065000,-409.4,0.00021918,2]
[424668548,1781037065000,-409.4,0.00021918,2]
[424668549,1781037065000,-409.4,0.00021918,2]
[424668541,1781037065000,-151.0,0.00021918,2]
[424668550,1781037065000,-409.4,0.00021918,2]
[424668546,1781037065000,-409.4,0.00021918,2]
[424668544,1781037065000,-409.4,0.00021918,2]
[424668539,1781037065000,-151.0,0.00021918,2]
[424668542,1781037065000,-409.4,0.00021918,2]
[424668545,1781037065000,-172.80851,0.00021918,2]
[424668552,1781037065000,-297.206192,0.00021918,2]
[424668538,1781037065000,-409.4,0.00021918,2]
[424668557,1781037065000,-409.4,0.00021918,2]
[424668574,1781037065000,-297.206199,0.00021918,2]
[424668565,1781037065000,-297.206192,0.00021918,2]
[424668566,1781037065000,-297.206192,0.00021918,2]
[424668562,1781037065000,-297.206192,0.00021918,2]
[424668554,1781037065000,-297.206192,0.00021918,2]
[424668561,1781037065000,-409.4,0.00021918,2]
[424668564,1781037065000,-297.206192,0.00021918,2]
[424668558,1781037065000,-297.206192,0.00021918,2]
[424668563,1781037065000,-409.4,0.00021918,2]
[424668560,1781037065000,-297.206192,0.00021918,2]
[424668553,1781037065000,-297.206192,0.00021918,2]
[424668556,1781037065000,-297.206192,0.00021918,2]
[424668555,1781037065000,-297.206192,0.00021918,2]
[424668559,1781037065000,-409.4,0.00021918,2]
[424668646,1781037066000,-151.0,0.00021918,2]
[424668656,1781037066000,-264.826344,0.00021918,2]
[424668645,1781037066000,-151.0,0.00021918,2]
[424668641,1781037066000,-264.826344,0.00021918,2]
[424668642,1781037066000,-151.0,0.00021918,2]
[424668637,1781037066000,-264.826344,0.00021918,2]
[424668643,1781037066000,-151.0,0.00021918,2]
[424668638,1781037066000,-151.0,0.00021918,2]
[424668644,1781037066000,-264.826344,0.00021918,2]
[424668640,1781037066000,-151.0,0.00021918,2]
[424668639,1781037066000,-264.826344,0.00021918,2]
[424668636,1781037066000,-151.0,0.00021918,2]
[424668647,1781037066000,-264.826344,0.00021918,2]
[424668649,1781037066000,-151.0,0.00021918,2]
[424668653,1781037066000,-264.826344,0.00021918,2]
[424668654,1781037066000,-151.0,0.00021918,2]
[424668648,1781037066000,-151.0,0.00021918,2]
[424668651,1781037066000,-151.0,0.00021918,2]
[424668650,1781037066000,-264.826344,0.00021918,2]
[424668655,1781037066000,-151.0,0.00021918,2]
[424668657,1781037066000,-151.0,0.00021918,2]
[424668662,1781037066000,-151.0,0.00021918,2]
[424668661,1781037066000,-151.0,0.00021918,2]
[424668658,1781037066000,-151.0,0.00021918,2]
[424668660,1781037066000,-151.0,0.00021918,2]
[424668664,1781037066000,-151.0,0.00021918,2]
[424668635,1781037066000,-264.826344,0.00021918,2]
[424668652,1781037066000,-151.0,0.00021918,2]